bitfinex-derivatives/quotes_ETHF0:USTF0_20250917
["timestamp","ask_amount","ask_price","bid_price","bid_amount"]
[1758089319965,0.7329,4510.9,4510.8,0.0221]
[1758089320156,1.67581843,4510.9,4510.8,0.0221]
[1758089320360,1.67581843,4510.9,4510.8,0.2383]
[1758089321363,1.67581843,4510.9,4510.8,0.5685]
[1758089321562,1.67581843,4510.9,4510.8,0.7744]
[1758089321768,1.90581843,4510.9,4510.8,0.7744]
[1758089323067,1.90581843,4510.9,4510.8,0.7523]
[1758089323368,1.90581843,4510.9,4510.6,0.3302]
[1758089323869,1.37321843,4510.9,4510.0,3.3294]
[1758089324068,0.9629,4510.8,4510.7,0.2162]
[1758089324669,0.9629,4510.8,4510.7,0.5464]
[1758089328072,0.9629,4510.8,4510.7,0.7523]
[1758089328671,0.2149,4511.1,4511.0,0.1216]
[1758089328972,0.2149,4511.4,4511.3,0.4221]
[1758089329178,0.23,4511.5,4511.3,0.4221]
[1758089329471,0.4449,4511.5,4511.4,0.7523]
[1758089329676,0.9629,4511.5,4511.4,0.7523]
[1758089330175,0.7329,4511.5,4511.4,0.7523]
[1758089330766,0.7329,4511.5,4511.4,0.5464]
[1758089331878,1.51919216,4511.5,4511.4,0.5464]
[1758089332274,1.74919216,4511.5,4511.4,0.5464]
[1758089333878,1.74919216,4511.5,4511.4,0.2162]
[1758089334177,0.4303,4511.1,4511.0,3.7515]
[1758089334377,1.51919216,4511.1,4511.0,3.7515]
[1758089334681,1.51919216,4511.1,4511.0,4.0817]
[1758089334879,0.78629216,4511.6,4511.4,0.4221]
[1758089335075,1.01529216,4511.6,4511.5,0.8739]
[1758089335280,1.23019216,4511.6,4511.5,0.8739]
[1758089335682,0.4439,4511.8,4511.7,0.4221]
[1758089335871,0.4439,4511.8,4511.7,0.7523]
[1758089336080,1.23019216,4511.8,4511.7,0.7523]
[1758089336270,1.74769216,4511.8,4511.7,0.7523]
[1758089336674,1.51869216,4511.8,4511.7,0.7523]
[1758089337681,1.74769216,4511.8,4511.7,0.7523]
[1758089337981,0.7291,4511.3,4511.2,0.5374]
[1758089338177,1.51539216,4511.3,4511.2,0.5374]
[1758089339777,0.4173,4511.1,4511.0,3.2078]
[1758089340081,0.7324,4511.1,4511.0,3.746]
[1758089340471,0.3151,4511.6,4511.0,3.757]
[1758089340679,0.78629216,4511.6,4511.5,0.5492]
[1758089340879,0.78629216,4511.6,4511.5,0.8743]
[1758089341877,3.4368,4511.8,4511.6,0.3251]
[1758089342182,1.51869216,4511.7,4511.6,0.7476]
[1758089342583,0.4173,4511.7,4511.6,0.7476]
[1758089342780,0.209,4511.7,4511.6,0.7476]
[1758089345582,0.5241,4511.7,4511.6,0.7476]
[1758089347886,0.7324,4511.7,4511.6,0.7476]
[1758089348486,0.7324,4511.7,4511.6,0.5382]
[1758089348679,0.7324,4511.7,4511.6,0.7476]
[1758089350180,0.7324,4511.7,4511.2,0.3472]
[1758089350489,1.51869216,4511.3,4511.2,0.5603]
[1758089350885,1.51869216,4511.3,4511.2,0.7476]
[1758089356290,0.3151,4511.2,4511.1,0.5382]
[1758089356588,0.7324,4511.2,4511.1,0.5382]
[1758089357284,0.7324,4511.2,4511.1,0.7476]
[1758089360190,0.3151,4511.9,4511.2,0.3251]
[1758089360385,0.3151,4511.9,4511.0,3.3345]
[1758089360386,0.97931718,4511.8,4511.7,0.7476]
[1758089360583,2.08070934,4511.8,4511.7,0.7476]
[1758089360891,1.74769216,4511.8,4511.7,0.7476]
[1758089361285,0.7324,4511.8,4511.7,0.7476]
[1758089361485,1.51869216,4511.8,4511.7,0.7476]
[1758089362795,1.51869216,4511.8,4511.2,0.3251]
[1758089363096,0.99529216,4511.3,4511.2,0.7476]
[1758089363692,1.51869216,4511.3,4511.2,0.7476]
[1758089363889,0.3151,4511.2,4511.1,0.5382]
[1758089364200,0.3151,4511.2,4511.1,0.7476]
[1758089364201,0.7324,4511.2,4511.1,0.7476]
[1758089365402,0.3151,4511.1,4511.0,3.2078]
[1758089365702,0.7324,4511.1,4511.0,3.746]
[1758089365902,0.7324,4511.1,4511.0,3.9554]
[1758089366498,0.209,4511.1,4511.0,4.0821]
[1758089366697,0.78629216,4511.3,4511.0,3.757]
[1758089366898,0.99529216,4511.3,4511.2,0.4225]
[1758089367197,0.99529216,4511.3,4511.2,0.7476]
[1758089369307,1.29479216,4511.3,4511.2,0.7476]
[1758089370498,0.78629216,4511.6,4511.5,0.1216]
[1758089370698,0.78629216,4511.9,4511.5,0.8453]
[1758089371001,0.1951,4511.8,4511.7,0.7237]
[1758089372003,3.3348,4513.0,4512.0,0.1216]
[1758089372192,1.47037706,4512.9,4512.8,0.5077]
[1758089372792,1.47776706,4512.9,4512.8,0.7237]
[1758089373102,0.96546706,4512.9,4512.8,0.7237]
[1758089373309,1.21039216,4512.9,4512.8,0.7237]
[1758089373893,0.98139216,4512.9,4512.8,0.7237]
[1758089374099,0.1951,4513.3,4513.2,0.4276]
[1758089374299,0.98139216,4513.3,4513.2,0.7237]
[1758089374904,1.49369216,4513.3,4513.2,0.5077]
[1758089375105,1.49369216,4513.3,4513.0,0.2961]
[1758089375798,1.49369216,4513.3,4512.6,3.2078]
[1758089375999,0.1951,4512.8,4512.7,0.7237]
[1758089376502,0.2995,4513.2,4512.7,0.7237]
[1758089376704,0.7074,4513.2,4513.1,0.4276]
[1758089376899,0.7074,4513.2,4513.1,0.7237]
[1758089377100,1.49369216,4513.2,4513.1,0.7237]
[1758089384410,0.7074,4513.2,4513.1,0.7237]
[1758089384604,1.49369216,4513.2,4513.1,0.7237]
[1758089390816,0.5123,4512.8,4512.7,0.5077]
[1758089391014,1.49369216,4512.8,4512.7,0.7237]
[1758089391315,1.19419216,4512.8,4512.7,0.7237]
[1758089391703,0.4079,4512.8,4512.7,0.7237]
[1758089392413,0.1951,4512.8,4512.7,0.7237]
[1758089395919,0.2047,4513.1,4513.0,0.8471]
[1758089396117,0.5188,4513.1,4513.0,0.8471]
[1758089396513,0.7238,4513.1,4513.0,0.8471]
[1758089396919,0.7238,4513.1,4513.0,0.7288]
[1758089398118,0.7238,4513.1,4513.0,0.5322]
[1758089400724,0.9427805,4513.3,4512.8,0.0221]
[1758089400725,0.7412,4512.9,4512.8,0.0221]
[1758089400917,1.6839805,4512.9,4512.8,0.7438]
[1758089401117,0.2082,4513.2,4513.1,0.7217]
[1758089401318,0.2082,4513.2,4513.1,3.9295]
[1758089401824,1.2614805,4513.5,4513.1,3.9295]
[1758089402025,0.2082,4513.3,4513.2,0.7217]
[1758089402221,0.74810075,4513.3,4513.2,0.7217]
[1758089402722,1.28110075,4513.3,4513.2,0.7217]
[1758089403119,1.28110075,4513.3,4513.2,0.5137]
[1758089404921,1.28110075,4513.3,4513.2,0.7217]
[1758089407228,0.3187,4513.2,4513.1,3.2078]
[1758089407421,1.28110075,4513.2,4513.1,3.2078]
[1758089407821,1.28110075,4513.2,4512.8,0.2501]
[1758089408022,1.6839805,4512.9,4512.8,0.7638]
[1758089408423,1.6839805,4512.9,4512.8,0.7417]
[1758089409224,1.6839805,4512.9,4512.8,0.5137]
[1758089409928,0.7412,4512.7,4512.6,3.5208]
[1758089410131,0.7412,4512.7,4512.6,3.7215]
[1758089411732,0.7412,4512.7,4512.6,3.9295]
[1758089412228,0.4225,4512.7,4512.6,3.9295]
[1758089413730,0.7412,4512.7,4512.6,3.9295]
[1758089416131,0.9427805,4512.9,4512.6,3.9295]
[1758089416333,1.3789805,4513.3,4513.2,0.7217]
[1758089416534,1.91627759,4513.3,4513.2,0.7217]
[1758089416728,1.68827759,4513.3,4513.2,0.7217]
[1758089416934,2.00697759,4513.3,4513.2,0.7217]
[1758089417435,2.22127759,4513.3,4513.2,0.7217]
[1758089417733,0.3187,4513.9,4513.2,3.6165]
[1758089417928,0.74544632,4513.8,4513.7,0.4087]
[1758089418130,2.22122682,4513.8,4513.7,0.5137]
[1758089420744,0.53724632,4513.8,4513.7,0.7217]
[1758089420946,0.3187,4514.4,4513.7,3.9295]
[1758089421243,0.3187,4514.4,4514.3,0.7217]
[1758089421244,0.5269,4514.4,4514.3,0.7217]
[1758089421444,1.27790577,4514.4,4514.3,0.7217]
[1758089422145,1.27790577,4514.4,4514.1,0.313]
[1758089422146,0.7412,4514.4,4514.1,0.313]
[1758089422343,1.6839805,4514.2,4513.7,3.2078]
[1758089422650,0.7412,4513.9,4513.8,0.313]
[1758089423145,0.7412,4513.9,4513.8,0.5137]
[1758089423743,1.6839805,4513.9,4513.8,0.5137]
[1758089426346,1.6839805,4513.9,4513.8,0.7217]
[1758089429445,1.6839805,4513.9,4513.8,0.313]
[1758089429644,1.3652805,4513.9,4513.8,0.7002]
[1758089430148,1.6637805,4513.9,4513.8,0.7002]
[1758089430839,0.7008,4513.8,4513.7,3.2078]
[1758089431041,0.7008,4513.8,4513.7,3.7084]
[1758089431245,0.7008,4513.8,4513.7,3.4089]
[1758089431839,0.7008,4513.8,4513.7,3.7084]
[1758089433149,0.7008,4513.8,4513.7,3.908]
[1758089436641,0.7008,4513.8,4512.6,0.17478375]
[1758089436642,0.2985,4513.7,4513.1,0.2995]
[1758089436839,0.4023,4512.7,4512.6,0.2011]
[1758089437149,0.4023,4512.7,4512.1,0.7002]
[1758089437150,0.7008,4512.2,4512.1,0.7002]
[1758089437545,0.7008,4512.2,4511.6,0.2995]
[1758089437546,0.8255,4512.0,4511.6,0.2995]
[1758089437742,1.3450805,4511.7,4511.6,0.5006]
[1758089438049,1.6435805,4511.7,4511.6,0.5006]
[1758089440349,1.6435805,4511.7,4511.4,3.2299]
[1758089440552,1.3450805,4511.5,4511.4,3.7305]
[1758089440852,1.6435805,4511.5,4511.4,3.7305]
[1758089441949,1.6435805,4511.5,4511.4,3.7084]
[1758089442752,1.6435805,4511.5,4511.4,3.908]
[1758089444561,1.6435805,4511.5,4511.4,0.7002]
[1758089445448,1.7682805,4511.5,4511.0,0.122]
[1758089445643,1.1464805,4511.1,4511.0,0.8222]
[1758089445847,1.6435805,4511.1,4511.0,0.8222]
[1758089446254,1.6435805,4511.1,4511.0,0.7002]
[1758089447155,1.3450805,4511.1,4511.0,0.8222]
[1758089447355,1.1464805,4511.1,4511.0,0.8222]
[1758089449153,1.6435805,4511.1,4511.0,0.8222]
[1758089449359,1.6435805,4511.1,4511.0,0.7002]
[1758089450561,0.7008,4511.0,4510.9,3.5073]
[1758089450761,0.7008,4511.0,4510.9,3.908]
[1758089451562,0.7008,4511.0,4510.9,3.7084]
[1758089451862,1.61199736,4511.0,4510.9,3.7084]
[1758089452061,1.61199736,4511.0,4510.5,0.122]
[1758089452262,1.48729736,4510.6,4510.5,0.5006]
[1758089453264,1.48729736,4510.6,4510.5,0.7002]
[1758089454367,0.78649736,4510.7,4510.6,0.4991]
[1758089454664,0.78649736,4510.7,4510.6,3.908]
[1758089455159,0.2985,4511.2,4510.6,3.6085]
[1758089455360,0.78649736,4510.9,4510.8,0.7302]
[1758089455660,0.78649736,4511.2,4511.1,0.7302]
[1758089457265,1.00129736,4511.2,4511.1,0.7302]
[1758089459665,1.1904811,4511.2,4511.1,0.7302]
[1758089459865,1.00129736,4511.2,4511.1,0.7302]
[1758089460369,1.19054085,4511.2,4511.1,0.7302]
[1758089460971,5.20067389,4516.2,4511.9,0.3071]
[1758089460972,0.3162,4512.9,4511.9,0.3071]
[1758089461269,0.78649736,4513.2,4513.1,0.3071]
[1758089461574,0.78649736,4513.2,4513.1,0.7104]
[1758089461865,0.98789736,4513.2,4513.1,0.7104]
[1758089462066,0.78649736,4513.5,4513.1,4.4033]
[1758089462372,0.78649736,4513.5,4513.4,0.7104]
[1758089463273,0.98789736,4513.5,4513.4,0.7104]
[1758089463764,3.2078,4513.7,4513.4,0.7104]
[1758089464067,0.78649736,4513.5,4513.4,0.7104]
[1758089464772,0.98789736,4513.5,4513.4,0.7104]
[1758089465068,0.2014,4513.5,4513.4,0.7104]
[1758089465262,0.98789736,4513.5,4513.4,0.7104]
[1758089466471,0.78649736,4513.5,4513.4,0.7104]
[1758089470273,0.98789736,4513.5,4513.4,0.7104]
[1758089471075,0.78649736,4513.5,4513.4,0.7104]
[1758089471270,0.78649736,4513.9,4513.8,0.7104]
[1758089471975,0.98789736,4513.9,4513.8,0.7104]
[1758089472177,1.49979736,4513.9,4513.8,0.7104]
[1758089472670,1.18359736,4513.9,4513.5,0.228]
[1758089472878,1.49979736,4513.6,4513.5,0.7359]
[1758089473269,1.49979736,4513.6,4513.5,0.5079]
[1758089474766,1.49979736,4513.6,4513.5,0.7104]
[1758089474970,1.49979736,4513.6,4513.5,0.8291]
[1758089475167,1.18359736,4513.6,4513.5,0.8291]
[1758089475468,0.98789736,4513.6,4513.5,0.8291]
[1758089475878,1.30409736,4513.6,4513.5,0.8291]
[1758089476179,1.49979736,4513.6,4513.5,0.8291]
[1758089476476,1.49979736,4513.6,4513.5,0.7104]
[1758089477671,0.1277,4513.5,4513.3,0.227]
[1758089477981,0.7133,4513.4,4513.3,0.7349]
[1758089478479,0.7133,4513.4,4513.3,0.9374]
[1758089479079,0.7133,4513.4,4513.3,0.7104]
[1758089481678,0.78649736,4513.6,4513.5,0.8291]
[1758089482581,0.98789736,4513.6,4513.5,0.8291]
[1758089483672,0.98789736,4513.6,4513.5,4.0369]
[1758089484280,1.49979736,4513.6,4513.5,4.0369]
[1758089484476,1.49979736,4513.6,4513.5,3.9182]
[1758089486375,1.49979736,4513.6,4513.5,4.0369]
[1758089488879,0.3008,4514.2,4513.6,0.2958]
[1758089489085,0.4131,4514.2,4514.1,0.7096]
[1758089489285,1.19959736,4514.2,4514.1,0.7096]
[1758089489578,1.73726305,4514.2,4514.1,0.7096]
[1758089489781,2.03806305,4514.2,4514.1,0.7096]
[1758089490686,2.03806305,4514.2,4514.1,0.4993]
[1758089491677,0.4131,4513.6,4513.5,3.53]
[1758089491987,0.7139,4513.6,4513.5,3.53]
[1758089492383,0.7139,4513.6,4513.5,3.8258]
[1758089492782,0.7139,4513.6,4513.5,0.4993]
[1758089498490,0.7139,4513.6,4513.5,0.7096]
[1758089502589,0.7139,4513.6,4513.3,0.0221]
[1758089502793,1.50039736,4513.4,4513.3,0.0221]
[1758089503191,1.72195736,4513.4,4512.8,0.2958]
[1758089503393,1.50039736,4512.9,4512.8,0.4993]
[1758089504489,1.50039736,4512.9,4512.8,0.7096]
[1758089505700,1.50039736,4512.9,4512.8,0.4993]
[1758089506491,1.50039736,4512.9,4512.6,0.3179]
[1758089506790,1.50039736,4512.9,4512.7,0.2958]
[1758089507392,1.50039736,4512.9,4512.6,0.0221]
[1758089508397,1.72198736,4512.9,4512.6,0.0221]
[1758089508594,1.72198736,4512.9,4512.6,0.3179]
[1758089508791,1.50039736,4512.9,4512.6,0.3179]
[1758089512699,1.50039736,4512.9,4512.6,0.0221]
[1758089513904,1.35613534,4512.7,4512.6,0.3179]
[1758089514205,1.65693534,4512.7,4512.6,0.2958]
[1758089515801,1.65693534,4512.7,4512.6,0.4993]
[1758089517102,1.65693534,4512.7,4512.1,0.3119]
[1758089517897,0.94303534,4512.4,4512.3,0.5148]
[1758089518091,1.65463534,4512.4,4512.3,0.7231]
[1758089520604,0.7116,4512.4,4512.3,0.7231]
[1758089520805,0.94303534,4513.3,4512.9,0.3037]
[1758089521004,0.2053,4513.2,4513.1,0.7237]
[1758089521195,0.3042,4513.6,4513.2,0.3037]
[1758089521508,1.45253534,4513.6,4513.5,0.8511]
[1758089522102,1.66283534,4513.6,4513.5,0.7237]
[1758089522904,1.66283534,4513.6,4513.5,0.5152]
[1758089523108,1.35863534,4513.6,4513.2,0.3037]
[1758089523302,0.4156,4513.3,4513.2,0.5152]
[1758089523498,0.7198,4513.3,4513.2,0.5152]
[1758089524801,0.3042,4513.2,4512.7,0.3037]
[1758089525100,1.66283534,4513.0,4512.9,0.7237]
[1758089525302,1.78833534,4513.0,4512.9,0.5152]
[1758089525607,0.7198,4512.7,4512.6,0.2115]
[1758089525802,0.7198,4512.7,4512.3,0.3037]
[1758089526107,1.66283534,4512.4,4512.3,0.5152]
[1758089526997,1.66283534,4512.4,4512.3,0.7237]
[1758089527601,1.66283534,4512.4,4512.2,0.3258]
[1758089527810,1.66283534,4512.4,4512.3,0.7237]
[1758089529406,1.66283534,4512.4,4512.3,0.5152]
[1758089529911,1.66283534,4512.4,4512.3,0.7237]
[1758089530808,0.3042,4512.8,4512.3,0.42]
[1758089531015,0.7198,4513.2,4513.1,0.7237]
[1758089531307,2.20187898,4513.2,4513.1,0.3037]
[1758089531513,1.35863534,4513.2,4512.7,0.3037]
[1758089531811,0.7198,4512.7,4512.4,0.3037]
[1758089532008,0.7198,4512.7,4512.0,3.3304]
[1758089532209,0.4156,4512.6,4512.5,0.2115]
[1758089532409,0.7198,4512.6,4512.5,0.5152]
[1758089532612,0.7198,4512.6,4512.5,0.7237]
[1758089533811,0.4156,4512.6,4512.5,0.8511]
[1758089534007,0.5095,4513.0,4512.9,0.7237]
[1758089534712,0.2053,4513.0,4512.9,0.7237]
[1758089535310,0.7198,4513.0,4512.9,0.7237]
[1758089535812,3.4131,4513.4,4513.3,0.7237]
[1758089536114,0.5095,4513.8,4513.7,0.42]
[1758089536314,0.2053,4513.8,4513.7,0.7237]
[1758089536706,0.3042,4514.4,4514.0,0.3359]
[1758089536904,0.3042,4514.4,4514.0,0.5474]
[1758089537105,0.2053,4514.1,4514.0,0.5474]
[1758089537311,0.2053,4514.1,4514.0,0.8511]
[1758089538612,0.2053,4514.5,4514.4,0.7237]
[1758089540119,1.66283534,4514.5,4514.4,0.7237]
[1758089545217,0.1255,4515.0,4514.5,0.1274]
[1758089545218,0.3042,4515.0,4514.5,0.1274]
[1758089545420,0.227,4515.2,4514.9,0.42]
[1758089545727,0.227,4515.2,4515.1,0.7237]
[1758089546021,0.4323,4515.2,4515.1,0.7237]
[1758089546416,0.9468,4515.2,4515.1,0.7237]
[1758089546617,0.9468,4515.2,4515.1,0.3037]
[1758089546816,0.4156,4515.0,4514.9,0.3037]
[1758089547017,1.66283534,4515.0,4514.9,0.5152]
[1758089549928,0.7198,4515.0,4514.9,0.5152]
[1758089550135,1.66283534,4515.0,4514.9,0.5152]
[1758089551537,1.66283534,4515.0,4514.9,0.7237]
[1758089553837,0.7341,4514.9,4514.8,3.2078]
[1758089554435,0.9601,4514.9,4514.7,0.0221]
[1758089554830,0.9601,4514.9,4514.7,0.322]
[1758089555034,0.9601,4514.9,4514.7,0.0221]
[1758089556342,1.67713534,4514.8,4514.7,0.0221]
[1758089556735,1.67713534,4514.8,4514.3,3.2078]
[1758089556944,0.5214,4514.7,4514.6,0.1985]
[1758089557142,0.7341,4514.4,4514.3,3.9225]
[1758089557339,1.67713534,4514.4,4514.3,3.9225]
[1758089557842,0.7341,4514.4,4514.3,3.9225]
[1758089558341,0.416,4514.4,4514.3,3.9225]
[1758089559342,0.7341,4514.4,4514.3,3.9225]
[1758089561136,0.416,4514.4,4514.3,3.9225]
[1758089561443,0.2127,4514.4,4514.3,3.9225]
[1758089562143,0.5308,4514.4,4514.3,3.9225]
[1758089563944,0.2127,4514.4,4514.3,3.9225]
[1758089564637,0.94303534,4514.5,4514.3,3.9225]
[1758089564839,0.94303534,4514.5,4514.4,0.7147]
[1758089566647,1.47383534,4514.5,4514.4,0.7147]
[1758089567051,1.67713534,4514.5,4514.4,0.7147]
[1758089569852,1.35903534,4514.5,4514.4,0.7147]
[1758089570342,1.67713534,4514.5,4514.4,0.7147]
[1758089573856,1.51926498,4514.5,4514.4,0.7147]
[1758089578962,0.7341,4514.5,4514.4,0.7147]
[1758089579161,1.51926498,4514.5,4514.4,0.7147]
[1758089581563,1.51926498,4514.5,4514.4,0.4984]
[1758089583170,1.51926498,4514.5,4514.4,0.7115]
[1758089591068,0.3051,4515.6,4515.5,0.835]
[1758089591273,0.2109,4515.6,4515.5,0.5399]
[1758089591868,0.2109,4515.6,4515.5,0.835]
[1758089592973,0.78516498,4515.9,4515.8,0.2131]
[1758089593276,0.9488,4516.4,4516.3,0.5023]
[1758089593470,2.27313807,4516.4,4516.3,0.5023]
[1758089593675,2.27313807,4516.4,4516.3,0.7154]
[1758089594568,2.27313807,4516.4,4516.3,0.5023]
[1758089594767,5.48093807,4516.4,4516.0,0.1196]
[1758089594973,0.7228,4516.2,4516.1,0.2951]
[1758089595174,2.04713807,4516.2,4516.1,0.2951]
[1758089595970,2.04713807,4516.2,4516.1,0.5023]
[1758089596873,2.04713807,4516.2,4516.1,0.7154]
[1758089597272,1.50796498,4516.2,4516.1,0.7154]
[1758089602573,1.73396498,4516.2,4516.1,0.7154]
[1758089603077,1.50796498,4516.2,4516.1,0.7154]
[1758089603285,0.4369,4516.2,4516.1,0.7154]
[1758089603486,0.3051,4516.5,4516.1,0.4203]
[1758089603791,0.226,4516.4,4516.3,0.7154]
[1758089603973,0.7228,4516.7,4516.6,0.7154]
[1758089604175,0.90526498,4518.0,4516.6,0.7154]
[1758089604176,3.2078,4518.1,4517.9,0.2072]
[1758089604373,0.7228,4518.5,4518.4,0.5023]
[1758089604575,0.8429,4518.5,4517.5,0.1196]
[1758089604775,0.8429,4518.5,4517.6,0.93674]
[1758089604776,0.2109,4517.7,4517.6,0.93674]
[1758089604979,0.99606498,4517.7,4517.6,0.93674]
[1758089605179,0.78516498,4517.7,4517.6,0.93674]
[1758089605376,0.78516498,4517.7,4517.6,0.7154]
[1758089605573,1.20286498,4517.7,4517.6,0.7154]
[1758089605779,1.50796498,4517.7,4517.6,0.7154]
[1758089607485,1.20286498,4517.7,4517.6,0.7154]
[1758089607686,0.4369,4518.1,4518.0,0.5399]
[1758089607880,1.22206498,4518.1,4518.0,0.835]
[1758089608582,1.51616498,4518.1,4518.0,0.835]
[1758089608785,1.74216498,4518.1,4518.0,0.835]
[1758089609680,1.51616498,4518.1,4518.0,0.835]
[1758089609988,1.74216498,4518.1,4518.0,0.835]
[1758089611387,1.51616498,4518.1,4518.0,0.835]
[1758089614881,1.51616498,4518.1,4518.0,0.7154]
[1758089615787,0.7253,4517.5,4517.4,0.5176]
[1758089615988,1.63446498,4517.5,4517.1,0.3137]
[1758089616188,1.51046498,4517.2,4517.1,0.5176]
[1758089616382,1.51046498,4517.2,4517.1,0.7167]
[1758089617791,1.51046498,4517.2,4516.8,3.2078]
[1758089617792,0.5276,4517.0,4516.8,3.2078]
[1758089618000,0.7253,4516.7,4516.6,0.5176]
[1758089619201,0.7253,4516.7,4516.6,0.2039]
[1758089619390,0.4036,4516.7,4516.3,3.2078]
[1758089619697,0.7253,4516.5,4516.4,0.5176]
[1758089620900,1.51046498,4516.5,4516.4,0.5176]
[1758089621095,1.51046498,4516.5,4516.4,0.7167]
[1758089621403,1.18876498,4516.5,4516.4,0.7167]
[1758089621793,1.51046498,4516.5,4516.4,0.7167]
[1758089622789,0.2052,4516.5,4516.4,0.7167]
[1758089623000,0.2052,4516.6,4516.5,0.5271]
[1758089623302,0.78516498,4516.8,4516.5,0.5271]
[1758089623602,0.99036498,4516.8,4516.7,0.7167]
[1758089624303,1.31206498,4516.8,4516.7,0.7167]
[1758089626200,1.51046498,4516.8,4516.7,0.7167]
[1758089628303,0.7253,4516.8,4516.7,0.7167]
[1758089628504,1.51046498,4516.8,4516.7,0.7167]
[1758089630509,0.78516498,4516.8,4516.7,0.7167]
[1758089631008,1.31206498,4517.1,4517.0,0.8408]
[1758089631208,0.99036498,4517.4,4517.3,0.403]
[1758089631411,1.31206498,4517.4,4517.3,0.7167]
[1758089631801,1.51046498,4517.4,4517.3,0.7167]
[1758089633802,1.66635687,4517.4,4517.3,0.7167]
[1758089636510,1.66635687,4517.4,4517.3,0.5176]
[1758089637207,1.66635687,4517.4,4516.7,0.226]
[1758089637411,1.66635687,4517.4,4516.8,0.32]
[1758089638008,1.66635687,4517.4,4517.3,0.1962]
[1758089638215,1.66635687,4517.4,4517.3,0.5162]
[1758089641818,1.66635687,4517.4,4517.3,0.7211]
[1758089643515,1.66635687,4517.4,4517.3,0.5162]
[1758089644716,1.66635687,4517.4,4517.1,0.0221]
[1758089645718,1.66635687,4517.4,4517.1,0.3181]
[1758089646016,1.66635687,4517.4,4517.1,0.0221]
[1758089647619,1.66635687,4517.4,4517.1,0.3181]
[1758089647808,1.66635687,4517.4,4517.1,0.0221]
[1758089648015,3.9291,4517.2,4517.1,0.0221]
[1758089648308,4.69237253,4517.2,4516.3,0.296]
[1758089648508,0.7213,4516.4,4516.3,0.699]
[1758089648718,0.4161,4516.4,4516.3,0.699]
[1758089649512,0.2014,4516.4,4516.3,0.699]
[1758089652217,0.3052,4516.6,4516.3,0.699]
[1758089652420,0.5066,4516.6,4516.5,4.0327]
[1758089653120,0.2014,4516.6,4516.5,4.0327]
[1758089653720,0.94105687,4516.8,4516.5,4.0327]
[1758089653919,0.2014,4516.8,4516.7,0.403]
[1758089654223,0.225,4517.4,4517.2,0.296]
[1758089654427,0.73980242,4517.3,4517.2,0.699]
[1758089655018,1.04500242,4517.3,4517.2,0.699]
[1758089656519,1.25970242,4517.3,4517.2,0.699]
[1758089659326,0.95450242,4517.3,4517.2,0.699]
[1758089659526,0.7213,4517.3,4517.2,0.699]
[1758089660027,0.2014,4517.3,4517.2,0.699]
[1758089660628,0.5066,4517.3,4517.2,0.699]
[1758089661322,0.7213,4517.3,4517.2,0.699]
[1758089663128,0.2014,4517.3,4517.2,0.699]
[1758089664230,0.3052,4517.6,4517.5,0.1259]
[1758089664430,0.7316,4517.6,4517.5,0.8249]
[1758089664623,0.9463,4517.6,4517.5,0.8249]
[1758089664824,0.7213,4517.6,4517.5,0.8249]
[1758089665117,0.9463,4517.6,4517.5,0.699]
[1758089666332,0.2014,4517.1,4517.0,3.7367]
[1758089666928,0.2014,4517.1,4517.0,4.0327]
[1758089669342,0.7162,4517.1,4517.0,3.9068]
[1758089669636,0.7162,4517.1,4517.0,0.4941]
[1758089669830,0.7162,4517.1,4517.0,0.8218]
[1758089672236,0.7162,4517.1,4517.0,0.6974]
[1758089672739,0.7162,4517.1,4517.0,0.8218]
[1758089674036,0.7162,4517.1,4517.0,0.6974]
[1758089674337,0.7162,4517.1,4517.0,0.8218]
[1758089675232,0.7162,4517.1,4517.0,0.6974]
[1758089675938,0.7162,4517.1,4517.0,0.8218]
[1758089676133,0.3983,4517.1,4517.0,0.8218]
[1758089676937,0.7162,4517.1,4517.0,0.8218]
[1758089684843,0.2014,4517.1,4517.0,0.8218]
[1758089685740,1.25895687,4517.4,4517.0,0.8218]
[1758089685941,0.1996,4517.2,4517.1,0.3164]
[1758089686134,0.1996,4517.2,4517.1,0.7189]
[1758089686937,0.5175,4517.2,4517.1,0.7189]
[1758089687242,0.7144,4517.2,4517.1,0.7189]
[1758089689940,0.3179,4517.5,4517.1,0.4025]
[1758089690246,0.5175,4517.5,4517.4,0.4025]
[1758089690446,0.5175,4517.5,4517.4,0.7189]
[1758089691047,0.7144,4517.5,4517.4,0.7189]
[1758089694448,1.25344677,4517.5,4517.4,0.7189]
[1758089694849,0.7144,4517.5,4517.4,0.7189]
[1758089695047,0.8328,4517.5,4517.0,0.1244]
[1758089695248,0.8328,4517.5,4517.0,0.5269]
[1758089695249,1.65545687,4517.1,4517.0,0.5269]
[1758089695448,1.33755687,4517.1,4517.0,0.5269]
[1758089695650,0.1996,4517.1,4517.0,0.8396]
[1758089695948,0.509,4517.1,4517.0,0.8396]
[1758089696149,0.1996,4517.1,4517.0,0.8396]
[1758089698652,0.3094,4517.4,4517.0,0.8396]
[1758089698860,1.29920273,4517.4,4517.3,0.408]
[1758089699060,1.83841967,4517.4,4517.3,0.7111]
[1758089699260,2.05421967,4517.4,4517.3,0.7111]
[1758089699964,1.27001694,4517.4,4517.3,0.7111]
[1758089700257,2.05421967,4517.4,4517.3,0.7111]
[1758089701658,1.27001694,4517.4,4517.3,0.7111]
[1758089703965,0.225,4517.6,4517.3,0.7111]
[1758089704267,0.4306,4517.6,4517.5,0.8386]
[1758089704460,0.96982965,4517.6,4517.5,0.8386]
[1758089704757,0.2056,4518.4,4518.1,0.3031]
[1758089704962,0.3084,4518.7,4518.5,0.1275]
[1758089705158,0.2056,4518.7,4518.6,0.7111]
[1758089705558,1.09260273,4519.2,4518.7,0.3031]
[1758089705864,1.09260273,4519.2,4519.0,0.8386]